[Event "*** Titled Tuesday Blitz"]
[Site "Chess.com"]
[Date "2019.12.03"]
[Round "5"]
[White "vlad10898"]
[Black "Elyon2000"]
[Result "1-0"]
[WhiteElo "2690"]
[BlackElo "2379"]
[TimeControl "180+2"]
[EndTime "14:04:41 PST"]
[Termination "vlad10898 won by resignation"]

1. e4 {[%clk 0:03:00.6]} 1... c5 {[%clk 0:02:56.4]} 2. Nf3 {[%clk 0:02:58.1]}
2... Nc6 {[%clk 0:02:57.6]} 3. d4 {[%clk 0:02:59.4]} 3... cxd4 {[%clk
0:02:59.5]} 4. Nxd4 {[%clk 0:03:00.2]} 4... Nf6 {[%clk 0:03:01.2]} 5. Nc3 {[%clk
0:03:01.3]} 5... e5 {[%clk 0:03:02.8]} 6. Ndb5 {[%clk 0:03:02.3]} 6... d6 {[%clk
0:03:04.2]} 7. Bg5 {[%clk 0:03:03.9]} 7... a6 {[%clk 0:03:05.6]} 8. Na3 {[%clk
0:03:05.6]} 8... b5 {[%clk 0:03:07]} 9. Bxf6 {[%clk 0:03:07.3]} 9... gxf6 {[%clk
0:03:08.5]} 10. Nd5 {[%clk 0:03:09]} 10... f5 {[%clk 0:03:10.2]} 11. Bd3 {[%clk
0:03:10]} 11... Be6 {[%clk 0:03:10.3]} 12. O-O {[%clk 0:03:10.8]} 12... Bxd5
{[%clk 0:03:11.3]} 13. exd5 {[%clk 0:03:12.2]} 13... Ne7 {[%clk 0:03:12.9]} 14.
Nxb5 {[%clk 0:03:13.6]} 14... Bg7 {[%clk 0:03:13.2]} 15. Nc3 {[%clk 0:03:15.3]}
15... O-O {[%clk 0:03:11.5]} 16. Qh5 {[%clk 0:02:48.7]} 16... e4 {[%clk
0:03:10.6]} 17. Bc4 {[%clk 0:02:49.1]} 17... Qc8 {[%clk 0:03:11.2]} 18. Bb3
{[%clk 0:02:42.4]} 18... Bxc3 {[%clk 0:03:03.8]} 19. bxc3 {[%clk 0:02:43.6]}
19... Ng6 {[%clk 0:03:04.5]} 20. Ba4 {[%clk 0:02:23.4]} 20... f4 {[%clk
0:02:52.8]} 21. Bc6 {[%clk 0:02:19.7]} 21... Rb8 {[%clk 0:02:53.5]} 22. Rae1
{[%clk 0:02:14.5]} 22... f5 {[%clk 0:02:54.6]} 23. f3 {[%clk 0:02:16.1]} 23...
e3 {[%clk 0:02:49.8]} 24. g3 {[%clk 0:02:17.4]} 24... Kh8 {[%clk 0:02:23.1]} 25.
gxf4 {[%clk 0:02:18]} 25... Nxf4 {[%clk 0:02:25]} 26. Qh6 {[%clk 0:02:18.8]}
26... Ng6 {[%clk 0:01:58.5]} 27. Rxe3 {[%clk 0:02:10.3]} 27... Rb2 {[%clk
0:01:44.2]} 28. Rfe1 {[%clk 0:01:47.7]} 28... Rb8 {[%clk 0:01:26.3]} 29. Re7
{[%clk 0:01:29.6]} 29... Nxe7 {[%clk 0:01:10]} 30. Rxe7 {[%clk 0:01:31.5]} 30...
Rf7 {[%clk 0:01:11.9]} 31. Re8+ {[%clk 0:01:17.7]} 31... Qxe8 {[%clk 0:01:12.3]}
32. Bxe8 {[%clk 0:01:19.6]} 32... Rxe8 {[%clk 0:01:13.5]} 33. Qxd6 {[%clk
0:01:21]} 33... Kg7 {[%clk 0:01:02.8]} 34. Kf2 {[%clk 0:00:58.7]} 34... Rfe7
{[%clk 0:00:57.4]} 35. Qxa6 {[%clk 0:00:59.5]} 35... Re1 {[%clk 0:00:51.6]} 36.
d6 {[%clk 0:00:51.8]} 36... Rh1 {[%clk 0:00:42.7]} 37. d7 {[%clk 0:00:45.7]} 1-0

[Event "*** Titled Tuesday Blitz"]
[Site "Chess.com"]
[Date "2019.12.03"]
[Round "5"]
[White "Sunrise777"]
[Black "PavelChernomordik"]
[Result "1/2-1/2"]
[WhiteElo "2699"]
[BlackElo "2460"]
[TimeControl "180+2"]
[EndTime "14:04:48 PST"]
[Termination "Game drawn by agreement"]

1. d4 {[%clk 0:03:01.8]} 1... g6 {[%clk 0:02:58.9]} 2. c4 {[%clk 0:03:02.8]}
2... Bg7 {[%clk 0:03:00.2]} 3. Nc3 {[%clk 0:03:04.1]} 3... d6 {[%clk 0:03:00.2]}
4. e4 {[%clk 0:03:04.8]} 4... c6 {[%clk 0:03:01.2]} 5. Be3 {[%clk 0:03:04.7]}
5... a6 {[%clk 0:02:56.4]} 6. a4 {[%clk 0:03:04.3]} 6... a5 {[%clk 0:02:56.8]}
7. Qd2 {[%clk 0:02:58.7]} 7... Na6 {[%clk 0:02:57.4]} 8. h4 {[%clk 0:02:59.7]}
8... h6 {[%clk 0:02:55.5]} 9. Nge2 {[%clk 0:02:47.1]} 9... Nb4 {[%clk
0:02:48.8]} 10. Na2 {[%clk 0:02:33.6]} 10... Nxa2 {[%clk 0:02:46.1]} 11. Rxa2
{[%clk 0:02:34.6]} 11... Nf6 {[%clk 0:02:46.1]} 12. f3 {[%clk 0:02:35.3]} 12...
Nd7 {[%clk 0:02:44.5]} 13. Ng3 {[%clk 0:02:10.5]} 13... h5 {[%clk 0:02:41.6]}
14. Ra3 {[%clk 0:02:03.5]} 14... e5 {[%clk 0:02:36.7]} 15. Ne2 {[%clk
0:01:58.2]} 15... b6 {[%clk 0:02:21.7]} 16. Rd3 {[%clk 0:01:52.1]} 16... Qc7
{[%clk 0:02:15.6]} 17. b3 {[%clk 0:01:50.5]} 17... Ba6 {[%clk 0:02:08.4]} 18. d5
{[%clk 0:01:31.3]} 18... c5 {[%clk 0:01:59.6]} 19. g4 {[%clk 0:01:14.8]} 19...
hxg4 {[%clk 0:01:58]} 20. fxg4 {[%clk 0:01:15.7]} 20... Nf6 {[%clk 0:01:59.4]}
21. Bg2 {[%clk 0:01:07.9]} 21... Nxg4 {[%clk 0:01:57.3]} 22. Bg5 {[%clk
0:00:55]} 22... f6 {[%clk 0:01:55.9]} 23. Rg3 {[%clk 0:00:56.1]} 23... Bc8
{[%clk 0:01:53.6]} 24. Be3 {[%clk 0:00:57.2]} 24... Nxe3 {[%clk 0:01:52.5]} 25.
Qxe3 {[%clk 0:00:58.3]} 25... Bh6 {[%clk 0:01:49]} 26. Qg1 {[%clk 0:00:51.8]}
26... Qh7 {[%clk 0:01:45]} 27. Bf3 {[%clk 0:00:45.7]} 27... Kf7 {[%clk
0:01:14.2]} 28. Nc3 {[%clk 0:00:44.9]} 28... Bd7 {[%clk 0:01:13.5]} 29. h5
{[%clk 0:00:37.2]} 29... g5 {[%clk 0:01:10.5]} 30. Bg4 {[%clk 0:00:38.2]} 30...
Ke7 {[%clk 0:01:06.1]} 31. Bxd7 {[%clk 0:00:33.9]} 31... Kxd7 {[%clk 0:01:06]}
32. Qf2 {[%clk 0:00:34.3]} 32... Raf8 {[%clk 0:01:00.3]} 33. Qf5+ {[%clk
0:00:34.9]} 33... Qxf5 {[%clk 0:00:53.1]} 34. exf5 {[%clk 0:00:36.8]} 1/2-1/2

[Event "*** Titled Tuesday Blitz"]
[Site "Chess.com"]
[Date "2019.12.03"]
[Round "5"]
[White "Saitama_Hero"]
[Black "WPWPWP-2015"]
[Result "0-1"]
[WhiteElo "2324"]
[BlackElo "2541"]
[TimeControl "180+2"]
[EndTime "14:04:54 PST"]
[Termination "WPWPWP-2015 won on time"]

1. d4 {[%clk 0:03:01.9]} 1... Nf6 {[%clk 0:02:58.7]} 2. c4 {[%clk 0:03:02.1]}
2... e6 {[%clk 0:02:59.3]} 3. Nc3 {[%clk 0:03:03.2]} 3... Bb4 {[%clk 0:02:59.4]}
4. f3 {[%clk 0:03:04.2]} 4... d5 {[%clk 0:02:58.3]} 5. a3 {[%clk 0:03:05.5]}
5... Bxc3+ {[%clk 0:02:57.8]} 6. bxc3 {[%clk 0:03:07.4]} 6... O-O {[%clk
0:02:57.6]} 7. cxd5 {[%clk 0:03:07.3]} 7... Nxd5 {[%clk 0:02:52.7]} 8. e4 {[%clk
0:03:03.7]} 8... Ne7 {[%clk 0:02:49.6]} 9. Bd3 {[%clk 0:03:02.7]} 9... c5 {[%clk
0:02:49.6]} 10. Ne2 {[%clk 0:03:04.1]} 10... Nbc6 {[%clk 0:02:48.9]} 11. Be3
{[%clk 0:03:03.7]} 11... cxd4 {[%clk 0:02:45.5]} 12. cxd4 {[%clk 0:03:05.6]}
12... e5 {[%clk 0:02:32]} 13. d5 {[%clk 0:03:05.3]} 13... Na5 {[%clk 0:02:26.8]}
14. O-O {[%clk 0:02:54.2]} 14... b6 {[%clk 0:02:24.9]} 15. f4 {[%clk 0:02:16.5]}
15... f6 {[%clk 0:02:15.4]} 16. fxe5 {[%clk 0:02:06.6]} 16... fxe5 {[%clk
0:02:15.8]} 17. Rxf8+ {[%clk 0:02:06.7]} 17... Qxf8 {[%clk 0:02:14.3]} 18. Ng3
{[%clk 0:01:45.7]} 18... Nb7 {[%clk 0:02:08.5]} 19. Qh5 {[%clk 0:01:40.8]} 19...
Ng6 {[%clk 0:02:02.7]} 20. Rf1 {[%clk 0:01:42]} 20... Qxa3 {[%clk 0:01:46.1]}
21. Qf3 {[%clk 0:00:53.9]} 21... Nd6 {[%clk 0:01:21.8]} 22. Bh6 {[%clk
0:00:17.8]} 22... Bg4 {[%clk 0:00:43.7]} 23. Qxg4 {[%clk 0:00:15.8]} 23... Qxd3
{[%clk 0:00:44]} 24. Qe6+ {[%clk 0:00:15.3]} 24... Kh8 {[%clk 0:00:41.1]} 25.
Bxg7+ {[%clk 0:00:09.2]} 25... Kxg7 {[%clk 0:00:36.8]} 26. Nh5+ {[%clk
0:00:10.7]} 26... Kh6 {[%clk 0:00:37.4]} 27. Nf6 {[%clk 0:00:07.4]} 27... Qd4+
{[%clk 0:00:28.1]} 0-1

[Event "*** Titled Tuesday Blitz"]
[Site "Chess.com"]
[Date "2019.12.03"]
[Round "5"]
[White "ruvat"]
[Black "vpantev"]
[Result "0-1"]
[WhiteElo "2388"]
[BlackElo "2594"]
[TimeControl "180+2"]
[EndTime "14:05:05 PST"]
[Termination "vpantev won by resignation"]

1. d4 {[%clk 0:03:01.9]} 1... Nf6 {[%clk 0:02:57]} 2. c4 {[%clk 0:03:01.6]} 2...
e6 {[%clk 0:02:57.5]} 3. g3 {[%clk 0:03:02.5]} 3... Bb4+ {[%clk 0:02:57.9]} 4.
Bd2 {[%clk 0:03:02.8]} 4... c5 {[%clk 0:02:57]} 5. Nf3 {[%clk 0:03:02.4]} 5...
Qb6 {[%clk 0:02:57.5]} 6. Bg2 {[%clk 0:02:37]} 6... cxd4 {[%clk 0:02:56.9]} 7.
Nxd4 {[%clk 0:02:31.6]} 7... Bxd2+ {[%clk 0:02:49.8]} 8. Qxd2 {[%clk 0:02:31.7]}
8... a6 {[%clk 0:02:47.1]} 9. O-O {[%clk 0:02:28.4]} 9... O-O {[%clk 0:02:47.6]}
10. Nc3 {[%clk 0:02:20.3]} 10... d6 {[%clk 0:02:48]} 11. Rfd1 {[%clk 0:02:17.3]}
11... Rd8 {[%clk 0:02:48.2]} 12. Rac1 {[%clk 0:02:04.4]} 12... Nbd7 {[%clk
0:02:38.2]} 13. Na4 {[%clk 0:01:56.6]} 13... Qc7 {[%clk 0:02:36.5]} 14. b4
{[%clk 0:01:55.8]} 14... Nf8 {[%clk 0:02:28]} 15. e4 {[%clk 0:01:34.3]} 15...
Bd7 {[%clk 0:02:26.7]} 16. Nb2 {[%clk 0:01:27.6]} 16... Rac8 {[%clk 0:02:26.3]}
17. c5 {[%clk 0:01:17.1]} 17... dxc5 {[%clk 0:02:17.9]} 18. Rxc5 {[%clk
0:01:05.2]} 18... Qb8 {[%clk 0:02:18.7]} 19. Qc3 {[%clk 0:00:37.3]} 19... Rxc5
{[%clk 0:02:06.9]} 20. bxc5 {[%clk 0:00:37.5]} 20... Qc7 {[%clk 0:01:49.9]} 21.
Qb4 {[%clk 0:00:32]} 21... e5 {[%clk 0:01:42.3]} 22. Nb3 {[%clk 0:00:28.1]}
22... Bc6 {[%clk 0:01:35.5]} 23. Rd6 {[%clk 0:00:21.3]} 23... Ne8 {[%clk
0:01:13]} 24. Rxd8 {[%clk 0:00:18.3]} 24... Qxd8 {[%clk 0:01:13.9]} 25. h3
{[%clk 0:00:15.3]} 25... Ne6 {[%clk 0:01:11.2]} 26. Qc3 {[%clk 0:00:11.8]} 26...
Nd4 {[%clk 0:01:09.2]} 27. Nxd4 {[%clk 0:00:10.8]} 27... exd4 {[%clk 0:01:10]}
28. Qc4 {[%clk 0:00:10.4]} 28... Nc7 {[%clk 0:01:08.3]} 29. Nd3 {[%clk
0:00:07.8]} 29... Ne6 {[%clk 0:01:02.5]} 30. Qc2 {[%clk 0:00:03.3]} 30... Bb5
{[%clk 0:00:50.5]} 31. Ne5 {[%clk 0:00:03.4]} 31... d3 {[%clk 0:00:49.2]} 32.
Qd2 {[%clk 0:00:04.5]} 32... Nxc5 {[%clk 0:00:43.7]} 33. f3 {[%clk 0:00:03.2]}
33... Qd4+ {[%clk 0:00:42.5]} 0-1

[Event "*** Titled Tuesday Blitz"]
[Site "Chess.com"]
[Date "2019.12.03"]
[Round "5"]
[White "chiwii"]
[Black "ferdipy"]
[Result "1-0"]
[WhiteElo "1977"]
[BlackElo "2188"]
[TimeControl "180+2"]
[EndTime "14:05:07 PST"]
[Termination "chiwii won by resignation"]

1. e4 {[%clk 0:03:01.9]} 1... c5 {[%clk 0:02:58]} 2. Nf3 {[%clk 0:03:02.5]} 2...
Nc6 {[%clk 0:02:46.9]} 3. d4 {[%clk 0:02:58.6]} 3... cxd4 {[%clk 0:02:48.1]} 4.
Nxd4 {[%clk 0:02:55.7]} 4... Nf6 {[%clk 0:02:49.4]} 5. Nc3 {[%clk 0:02:56.2]}
5... e5 {[%clk 0:02:49.5]} 6. Ndb5 {[%clk 0:02:57]} 6... d6 {[%clk 0:02:50.6]}
7. Nd5 {[%clk 0:02:58.1]} 7... Nxd5 {[%clk 0:02:50.2]} 8. exd5 {[%clk 0:03:00]}
8... Nb8 {[%clk 0:02:51.9]} 9. c4 {[%clk 0:02:58.9]} 9... Be7 {[%clk 0:02:53]}
10. Be2 {[%clk 0:02:59.1]} 10... O-O {[%clk 0:02:53.2]} 11. O-O {[%clk
0:02:59.2]} 11... f5 {[%clk 0:02:54]} 12. Be3 {[%clk 0:03:00.2]} 12... f4 {[%clk
0:02:54.7]} 13. Bxa7 {[%clk 0:02:57.2]} 13... Bd7 {[%clk 0:02:49.6]} 14. a4
{[%clk 0:02:56.8]} 14... Na6 {[%clk 0:02:48.8]} 15. Kh1 {[%clk 0:02:28.2]} 15...
Qe8 {[%clk 0:02:29.9]} 16. Bb6 {[%clk 0:02:26.4]} 16... Rc8 {[%clk 0:02:28.2]}
17. f3 {[%clk 0:02:19.5]} 17... g5 {[%clk 0:02:29]} 18. Nc3 {[%clk 0:02:13.7]}
18... Rf6 {[%clk 0:02:22.5]} 19. Ne4 {[%clk 0:02:14.7]} 19... Rh6 {[%clk
0:02:23.4]} 20. g4 {[%clk 0:02:12.6]} 20... fxg3 {[%clk 0:02:19.6]} 21. Nxg3
{[%clk 0:02:13.4]} 21... Qf7 {[%clk 0:02:17]} 22. Qd2 {[%clk 0:02:04]} 22... Nc5
{[%clk 0:02:16.1]} 23. Qe3 {[%clk 0:01:53.5]} 23... Rh4 {[%clk 0:02:02.6]} 24.
b4 {[%clk 0:01:47.2]} 24... Na6 {[%clk 0:02:00.2]} 25. Rab1 {[%clk 0:01:33]}
25... Bxa4 {[%clk 0:01:59.7]} 26. c5 {[%clk 0:01:31.1]} 26... dxc5 {[%clk
0:01:49.3]} 27. Qxe5 {[%clk 0:01:08.2]} 27... Nxb4 {[%clk 0:01:36.2]} 28. d6
{[%clk 0:01:05.9]} 28... Bf6 {[%clk 0:01:35.9]} 29. Qf5 {[%clk 0:01:06.4]} 29...
Bd7 {[%clk 0:01:34.7]} 30. Rxb4 {[%clk 0:00:42.7]} 30... Bxf5 {[%clk 0:01:32.7]}
31. Rxh4 {[%clk 0:00:43.7]} 31... gxh4 {[%clk 0:01:31.5]} 32. Nxf5 {[%clk
0:00:44.7]} 32... c4 {[%clk 0:01:30.6]} 33. Nh6+ {[%clk 0:00:45.7]} 33... Kg7
{[%clk 0:01:31]} 34. Nxf7 {[%clk 0:00:46.3]} 34... Kxf7 {[%clk 0:01:32.9]} 35.
Rc1 {[%clk 0:00:46.8]} 35... c3 {[%clk 0:01:34.3]} 36. Bb5 {[%clk 0:00:39.6]}
36... Bd8 {[%clk 0:01:31]} 37. Bd4 {[%clk 0:00:37.7]} 37... Ba5 {[%clk
0:01:27.9]} 38. Kg2 {[%clk 0:00:38.6]} 38... Ke6 {[%clk 0:01:28]} 39. d7 {[%clk
0:00:39.1]} 39... Rg8+ {[%clk 0:01:27.9]} 40. Kf2 {[%clk 0:00:39.7]} 40... Kd5
{[%clk 0:01:26.6]} 41. Bxc3 {[%clk 0:00:40.3]} 41... Bb6+ {[%clk 0:01:26.3]} 42.
Ke2 {[%clk 0:00:41]} 42... h3 {[%clk 0:01:27.5]} 43. Be1 {[%clk 0:00:39.9]}
43... Rg2+ {[%clk 0:01:27.4]} 44. Kd3 {[%clk 0:00:41.1]} 44... Rxh2 {[%clk
0:01:15.7]} 45. Bh4 {[%clk 0:00:42.1]} 45... Rf2 {[%clk 0:01:15.3]} 46. Bxf2
{[%clk 0:00:43]} 1-0

[Event "*** Titled Tuesday Blitz"]
[Site "Chess.com"]
[Date "2019.12.03"]
[Round "5"]
[White "XDPS"]
[Black "ShahMatKanal"]
[Result "1-0"]
[WhiteElo "2738"]
[BlackElo "2484"]
[TimeControl "180+2"]
[EndTime "14:05:14 PST"]
[Termination "XDPS won by resignation"]

1. e4 {[%clk 0:03:01.3]} 1... c5 {[%clk 0:03:00]} 2. Nf3 {[%clk 0:02:59.9]} 2...
Nc6 {[%clk 0:03:00.6]} 3. Bb5 {[%clk 0:02:54.3]} 3... g6 {[%clk 0:03:01]} 4.
Bxc6 {[%clk 0:02:54.3]} 4... dxc6 {[%clk 0:03:01.9]} 5. d3 {[%clk 0:02:54.5]}
5... Bg7 {[%clk 0:03:02.9]} 6. h3 {[%clk 0:02:55.4]} 6... e5 {[%clk 0:02:59]} 7.
Nc3 {[%clk 0:02:47.2]} 7... Qe7 {[%clk 0:02:54.2]} 8. a3 {[%clk 0:02:47.5]} 8...
Nf6 {[%clk 0:02:45.4]} 9. O-O {[%clk 0:02:48]} 9... Nd7 {[%clk 0:02:43.8]} 10.
Be3 {[%clk 0:02:41.4]} 10... Nf8 {[%clk 0:02:35.9]} 11. Na4 {[%clk 0:02:22.4]}
11... Ne6 {[%clk 0:02:31.1]} 12. b4 {[%clk 0:02:23.5]} 12... b6 {[%clk
0:01:46.8]} 13. Qd2 {[%clk 0:02:11.8]} 13... O-O {[%clk 0:01:32]} 14. bxc5
{[%clk 0:02:03.7]} 14... b5 {[%clk 0:01:31.3]} 15. Nb2 {[%clk 0:02:01.6]} 15...
a5 {[%clk 0:01:14.4]} 16. a4 {[%clk 0:01:55.8]} 16... b4 {[%clk 0:01:03.4]} 17.
Nc4 {[%clk 0:01:55.1]} 17... Nxc5 {[%clk 0:00:51.7]} 18. Rfb1 {[%clk 0:01:21]}
18... Rd8 {[%clk 0:00:33.8]} 19. Qe2 {[%clk 0:01:14.7]} 19... Nd7 {[%clk
0:00:27.2]} 20. c3 {[%clk 0:01:09]} 20... bxc3 {[%clk 0:00:19.6]} 21. Qc2 {[%clk
0:01:08.4]} 21... f5 {[%clk 0:00:14.3]} 22. Bg5 {[%clk 0:01:04.8]} 22... Bf6
{[%clk 0:00:14.8]} 23. Bxf6 {[%clk 0:01:05.6]} 23... Qxf6 {[%clk 0:00:14.4]} 24.
Qxc3 {[%clk 0:01:06.1]} 24... Re8 {[%clk 0:00:10.2]} 25. Nxa5 {[%clk 0:01:06.2]}
25... Ra6 {[%clk 0:00:06.4]} 26. Nc4 {[%clk 0:01:05.8]} 26... f4 {[%clk
0:00:05.4]} 27. a5 {[%clk 0:01:06.3]} 27... g5 {[%clk 0:00:06.3]} 28. Nh2 {[%clk
0:00:59.1]} 28... h5 {[%clk 0:00:07.4]} 29. Nb6 {[%clk 0:00:58.1]} 29... Nxb6
{[%clk 0:00:05.8]} 30. axb6 {[%clk 0:00:59]} 30... Rxa1 {[%clk 0:00:07.4]} 31.
Rxa1 {[%clk 0:01:00.6]} 31... g4 {[%clk 0:00:08]} 32. hxg4 {[%clk 0:01:00.5]}
32... hxg4 {[%clk 0:00:09.9]} 33. Ra8 {[%clk 0:00:58.9]} 33... g3 {[%clk
0:00:09.7]} 34. Nf3 {[%clk 0:00:58.8]} 34... gxf2+ {[%clk 0:00:10.4]} 35. Kxf2
{[%clk 0:01:00]} 35... Qd8 {[%clk 0:00:09.7]} 36. Qb3+ {[%clk 0:00:56.5]} 36...
Kh8 {[%clk 0:00:07.1]} 37. b7 {[%clk 0:00:56.4]} 37... Qc7 {[%clk 0:00:04.4]}
38. b8=Q {[%clk 0:00:53.9]} 1-0

[Event "*** Titled Tuesday Blitz"]
[Site "Chess.com"]
[Date "2019.12.03"]
[Round "5"]
[White "vladimirdamjanovic"]
[Black "Glufs"]
[Result "0-1"]
[WhiteElo "2573"]
[BlackElo "2392"]
[TimeControl "180+2"]
[EndTime "14:05:14 PST"]
[Termination "Glufs won by checkmate"]

1. c4 {[%clk 0:02:59.7]} 1... c5 {[%clk 0:03:00]} 2. Nc3 {[%clk 0:02:58.3]} 2...
Nc6 {[%clk 0:03:00.5]} 3. Nf3 {[%clk 0:02:51.7]} 3... g6 {[%clk 0:03:00.9]} 4.
e3 {[%clk 0:02:48.9]} 4... Nf6 {[%clk 0:03:00.5]} 5. d4 {[%clk 0:02:49.6]} 5...
cxd4 {[%clk 0:03:01.5]} 6. exd4 {[%clk 0:02:51.5]} 6... d5 {[%clk 0:03:02.4]} 7.
cxd5 {[%clk 0:02:53.4]} 7... Nxd5 {[%clk 0:03:02.6]} 8. Bc4 {[%clk 0:02:55]}
8... Nxc3 {[%clk 0:03:02.4]} 9. Qb3 {[%clk 0:02:55.1]} 9... e6 {[%clk
0:03:02.2]} 10. bxc3 {[%clk 0:02:54.7]} 10... Bd7 {[%clk 0:03:03.2]} 11. Bd3
{[%clk 0:02:39.2]} 11... Na5 {[%clk 0:03:00.6]} 12. Qc2 {[%clk 0:02:36]} 12...
Bg7 {[%clk 0:02:50.2]} 13. Bf4 {[%clk 0:02:24.3]} 13... O-O {[%clk 0:02:47.4]}
14. O-O {[%clk 0:02:18.3]} 14... Rc8 {[%clk 0:02:47.7]} 15. Qd2 {[%clk
0:01:59.9]} 15... Nc6 {[%clk 0:02:09.7]} 16. Bh6 {[%clk 0:01:57.3]} 16... Re8
{[%clk 0:02:04.6]} 17. Bxg7 {[%clk 0:01:41.7]} 17... Kxg7 {[%clk 0:02:04.9]} 18.
Qf4 {[%clk 0:01:17.8]} 18... Qf6 {[%clk 0:01:49.8]} 19. Qg3 {[%clk 0:01:08.3]}
19... e5 {[%clk 0:01:46.1]} 20. d5 {[%clk 0:00:43.8]} 20... e4 {[%clk
0:01:27.8]} 21. dxc6 {[%clk 0:00:08]} 21... Bxc6 {[%clk 0:01:28.9]} 22. Nd4
{[%clk 0:00:09.4]} 22... exd3 {[%clk 0:01:28.5]} 23. Qxd3 {[%clk 0:00:11]} 23...
Be4 {[%clk 0:01:22.7]} 24. Qd2 {[%clk 0:00:07.3]} 24... Rc5 {[%clk 0:00:50.4]}
25. Rfe1 {[%clk 0:00:03.9]} 25... Rce5 {[%clk 0:00:27.9]} 26. f3 {[%clk
0:00:03.6]} 26... Bd5 {[%clk 0:00:27.5]} 27. Kf2 {[%clk 0:00:02.8]} 27... Qh4+
{[%clk 0:00:27]} 28. Kf1 {[%clk 0:00:04.3]} 28... Qxh2 {[%clk 0:00:26.1]} 29.
Rxe5 {[%clk 0:00:05.5]} 29... Rxe5 {[%clk 0:00:27]} 30. Re1 {[%clk 0:00:03.4]}
30... Bc4+ {[%clk 0:00:21.4]} 31. Kf2 {[%clk 0:00:03.4]} 31... Qh4+ {[%clk
0:00:21.8]} 32. g3 {[%clk 0:00:04.9]} 32... Qh2# {[%clk 0:00:22.3]} 0-1

[Event "*** Titled Tuesday Blitz"]
[Site "Chess.com"]
[Date "2019.12.03"]
[Round "5"]
[White "Astaneh"]
[Black "JoakimVonAnd"]
[Result "1-0"]
[WhiteElo "2569"]
[BlackElo "2385"]
[TimeControl "180+2"]
[EndTime "14:05:21 PST"]
[Termination "Astaneh won by resignation"]

1. d4 {[%clk 0:02:57.7]} 1... Nf6 {[%clk 0:02:59.4]} 2. Nc3 {[%clk 0:02:57.9]}
2... d5 {[%clk 0:02:58.8]} 3. Nf3 {[%clk 0:02:57.9]} 3... Bf5 {[%clk 0:02:58.9]}
4. Bf4 {[%clk 0:02:58.3]} 4... e6 {[%clk 0:02:59.7]} 5. e3 {[%clk 0:02:59.1]}
5... a6 {[%clk 0:03:00.8]} 6. Bd3 {[%clk 0:02:59.8]} 6... Bg6 {[%clk 0:03:00.7]}
7. Ne5 {[%clk 0:02:59.5]} 7... c5 {[%clk 0:03:00.8]} 8. dxc5 {[%clk 0:02:54]}
8... Bxc5 {[%clk 0:03:00.8]} 9. h4 {[%clk 0:02:55.3]} 9... Nc6 {[%clk
0:02:59.2]} 10. Nxc6 {[%clk 0:02:55.1]} 10... bxc6 {[%clk 0:02:59.8]} 11. h5
{[%clk 0:02:56.6]} 11... Bf5 {[%clk 0:02:57.1]} 12. Bxf5 {[%clk 0:02:55.2]}
12... exf5 {[%clk 0:02:59]} 13. h6 {[%clk 0:02:56.9]} 13... g6 {[%clk
0:02:58.1]} 14. Na4 {[%clk 0:02:55.2]} 14... Bb4+ {[%clk 0:02:55.4]} 15. c3
{[%clk 0:02:55.4]} 15... Bd6 {[%clk 0:02:56.6]} 16. Qd4 {[%clk 0:02:56.3]} 16...
Bxf4 {[%clk 0:02:51.5]} 17. exf4 {[%clk 0:02:58.2]} 17... Qe7+ {[%clk
0:02:50.5]} 18. Kd1 {[%clk 0:02:57.3]} 18... O-O {[%clk 0:02:50.9]} 19. Re1
{[%clk 0:02:57.9]} 19... Qd6 {[%clk 0:02:51.4]} 20. f3 {[%clk 0:02:56.1]} 20...
Rfe8 {[%clk 0:02:51.9]} 21. Nc5 {[%clk 0:02:55.9]} 21... Nh5 {[%clk 0:02:51.8]}
22. Re5 {[%clk 0:02:55.7]} 22... f6 {[%clk 0:02:44.2]} 23. Rxe8+ {[%clk
0:02:49.2]} 23... Rxe8 {[%clk 0:02:46.1]} 24. Nd3 {[%clk 0:02:47.8]} 24... Ng3
{[%clk 0:02:40.1]} 25. Qf2 {[%clk 0:02:38.3]} 25... Ne4 {[%clk 0:02:35.4]} 26.
Qa7 {[%clk 0:02:22.4]} 26... Re7 {[%clk 0:02:15.6]} 27. Qxa6 {[%clk 0:02:02.1]}
27... Nc5 {[%clk 0:02:02]} 28. Qa3 {[%clk 0:02:02.7]} 28... Nb7 {[%clk
0:01:52.8]} 29. Qxd6 {[%clk 0:02:03.9]} 29... Nxd6 {[%clk 0:01:54.7]} 30. b3
{[%clk 0:01:56.7]} 30... g5 {[%clk 0:01:52.4]} 31. a4 {[%clk 0:01:52.2]} 31...
g4 {[%clk 0:01:49.7]} 32. Kd2 {[%clk 0:01:51.2]} 32... Kf7 {[%clk 0:01:43.8]}
33. a5 {[%clk 0:01:49.9]} 33... Nb5 {[%clk 0:01:44.1]} 34. a6 {[%clk 0:01:42.7]}
34... Kg6 {[%clk 0:01:40.7]} 35. Rh1 {[%clk 0:01:28.5]} 35... Ra7 {[%clk
0:01:37.5]} 36. Nc5 {[%clk 0:01:27.9]} 36... Nc7 {[%clk 0:01:37.8]} 37. b4
{[%clk 0:01:18.1]} 37... Ra8 {[%clk 0:01:34.2]} 38. fxg4 {[%clk 0:00:22]} 38...
fxg4 {[%clk 0:01:31.4]} 39. g3 {[%clk 0:00:23.4]} 39... Nxa6 {[%clk 0:01:31.5]}
40. Ra1 {[%clk 0:00:24.7]} 40... Nc7 {[%clk 0:01:32.2]} 41. Rxa8 {[%clk
0:00:26.6]} 41... Nxa8 {[%clk 0:01:34.1]} 42. Ne6 {[%clk 0:00:25.2]} 42... Nb6
{[%clk 0:01:31.8]} 43. Nd4 {[%clk 0:00:21.5]} 43... Nc4+ {[%clk 0:01:30.3]} 44.
Ke2 {[%clk 0:00:22.1]} 44... Kxh6 {[%clk 0:01:29.2]} 45. Nxc6 {[%clk 0:00:22.9]}
45... Kg6 {[%clk 0:01:30.2]} 46. Ne7+ {[%clk 0:00:24.2]} 46... Kf7 {[%clk
0:01:28.5]} 47. Nxd5 {[%clk 0:00:26.1]} 47... Ke6 {[%clk 0:01:27.9]} 48. Ne3
{[%clk 0:00:26.1]} 48... h5 {[%clk 0:01:28.2]} 49. Nxc4 {[%clk 0:00:25.6]} 1-0